bitfinex/quotes_ETHUSD_20240926
["timestamp","ask_amount","ask_price","bid_price","bid_amount"]
[1727371984485,3.77017,2652.4,2652.2,0.0379729]
[1727371985068,8.35767,2652.5,2652.2,0.0379729]
[1727371985251,8.35765,2652.5,2652.2,0.0379729]
[1727371985672,3.7702,2652.4,2652.2,0.0379729]
[1727371986150,3.77017,2652.4,2652.2,0.0379729]
[1727371987593,3.76981,2652.7,2652.2,0.0379729]
[1727371987753,3.76981,2652.7,2652.2,3.8083429]
[1727371987954,0.8175,2652.8,2652.3,4.52812529]
[1727371988154,4.58712,2652.8,2652.3,8.29832529]
[1727371988387,3.76962,2652.8,2652.4,4.60194]
[1727371988599,4.58693,2653.0,2652.5,0.91300253]
[1727371988755,3.76928,2653.1,2652.5,4.68302253]
[1727371988960,3.76898,2653.3,2652.8,4.60132]
[1727371989156,3.76898,2653.3,2652.8,0.8318]
[1727371989667,3.76869,2653.5,2652.8,0.8318]
[1727371989881,3.76879,2653.4,2652.9,3.76937]
[1727371990194,3.7689,2653.3,2653.0,0.460117]
[1727371990353,2.98233466,2653.3,2652.8,4.60136]
[1727371990555,3.76876,2653.4,2652.9,3.76944]
[1727371990754,3.76869,2653.5,2653.0,4.229424]
[1727371990983,4.586,2653.6,2653.1,3.76915]
[1727371991201,7.23358921,2653.7,2653.2,0.4229274]
[1727371991202,3.7684,2653.7,2653.2,0.4229274]
[1727371991357,3.76849,2653.6,2653.2,0.4229274]
[1727371991556,3.7684,2653.7,2653.2,4.1919274]
[1727371991883,3.7684,2653.7,2653.3,1.25100174]
[1727371992251,7.5368,2653.7,2653.3,1.25100174]
[1727371992988,3.7684,2653.7,2653.3,1.25100174]
[1727371993197,3.76848,2653.6,2653.3,1.25100174]
[1727371993793,3.76848,2653.6,2653.3,0.8318]
[1727371994101,3.7684,2653.7,2653.3,0.8318]
[1727371994253,3.7682,2653.8,2653.3,4.60068]
[1727371994457,3.76832,2653.7,2653.3,4.60067]
[1727371994690,3.76821,2653.8,2653.4,0.87926074]
[1727371995001,4.58557,2653.9,2653.4,0.87926074]
[1727371995002,3.76833,2653.7,2653.4,0.87926074]
[1727371995156,4.58557,2653.9,2653.3,4.60066]
[1727371995157,3.76818,2653.8,2653.3,4.60066]
[1727371995351,3.76839,2653.7,2653.3,0.8318]
[1727371995556,3.76839,2653.7,2653.3,1.291879]
[1727371997056,4.54067,2653.4,2653.0,0.7645]
[1727371997256,8.30954,2653.4,2653.0,0.7645]
[1727371997876,3.7689,2653.3,2653.0,0.7645]
[1727371998559,3.76974,2652.7,2652.6,0.21839957]
[1727371998890,3.77031,2652.3,2652.2,0.0379729]
[1727371999093,7.32977336,2652.3,2652.2,0.0379729]
[1727371999458,10.32977336,2652.3,2652.2,0.0379729]
[1727371999663,12.47433569,2652.3,2652.2,0.0379729]
[1727371999865,12.47433569,2652.3,2651.4,0.0379729]
[1727371999866,3.0,2652.2,2651.4,0.0379729]
[1727372000105,7.23663921,2651.5,2651.4,0.0379729]
[1727372001677,12.80180164,2651.5,2651.4,0.0379729]
[1727372001886,12.70748966,2651.5,2651.4,0.0379729]
[1727372002092,14.41930023,2651.5,2651.4,0.0379729]
[1727372002390,15.22561864,2651.5,2651.4,0.0379729]
[1727372003987,13.52656819,2651.5,2651.4,0.0379729]
[1727372004364,13.91758819,2651.5,2651.4,0.0379729]
[1727372013311,14.46758819,2651.5,2651.4,0.0379729]
[1727372020232,15.10689422,2651.5,2651.4,0.0379729]
[1727372020448,15.10689422,2651.5,2650.8,0.31731186]
[1727372020449,4.6006,2650.9,2650.8,0.31731186]
[1727372020742,8.96644473,2650.9,2650.8,0.31731186]
[1727372020947,11.87210762,2650.9,2650.8,0.31731186]
[1727372021144,12.81320343,2650.9,2650.8,0.31731186]
[1727372024320,12.01352218,2650.9,2650.8,0.31731186]
[1727372024946,15.98652218,2650.9,2650.8,0.31731186]
[1727372025139,12.01352218,2650.9,2650.8,0.31731186]
[1727372025520,8.54169581,2650.9,2650.8,0.31731186]
[1727372025748,12.01352218,2650.9,2650.8,0.31731186]
[1727372026807,13.72005579,2650.9,2650.8,0.31731186]
[1727372029021,13.17005579,2650.9,2650.8,0.31731186]
[1727372029217,7.63522218,2650.9,2650.8,0.31731186]
[1727372029605,7.72955881,2650.9,2650.8,0.31731186]
[1727372030420,10.72955881,2650.9,2650.8,0.31731186]
[1727372030627,10.63522218,2650.9,2650.8,0.31731186]
[1727372031540,10.63522218,2650.9,2650.8,1.55731186]
[1727372031836,12.1590324,2650.9,2650.8,1.55731186]
[1727372032207,12.7090324,2650.9,2650.8,1.55731186]
[1727372033209,13.5397324,2650.9,2650.8,1.55731186]
[1727372034021,12.1590324,2650.9,2650.8,1.55731186]
[1727372034225,10.63522218,2650.9,2650.8,1.55731186]
[1727372040258,11.18522218,2650.9,2650.8,1.55731186]
[1727372042833,10.63522218,2650.9,2650.8,1.55731186]
[1727372043458,7.16339581,2650.9,2650.8,1.55731186]
[1727372043852,4.16339581,2650.9,2650.8,1.55731186]
[1727372044554,7.63522218,2650.9,2650.8,1.55731186]
[1727372048079,11.87028807,2650.9,2650.8,1.55731186]
[1727372048232,12.3259624,2650.9,2650.8,1.55731186]
[1727372049932,12.3259624,2650.9,2650.7,0.0379729]
[1727372049933,16.62728877,2650.9,2650.7,0.0379729]
[1727372050174,16.62728877,2650.9,2649.9,0.8035729]
[1727372050175,3.77358,2650.0,2649.9,0.8035729]
[1727372050333,3.0,2650.4,2649.9,0.8035729]
[1727372050334,3.77341,2650.2,2649.9,0.8035729]
[1727372050669,7.54679,2650.2,2649.9,0.8035729]
[1727372050833,3.77338,2650.2,2649.9,0.8035729]
[1727372051031,3.77312,2650.4,2649.9,0.8035729]
[1727372051273,3.77312,2650.4,2650.1,0.7656]
[1727372051571,3.7733,2650.2,2650.1,0.7656]
[1727372053101,4.2585748,2650.2,2650.1,0.7656]
[1727372053280,4.2585748,2650.2,2649.9,0.0379729]
[1727372053281,3.77358,2650.0,2649.9,0.0379729]
[1727372053483,7.3397631,2650.0,2649.9,0.0379729]
[1727372053658,3.77358,2650.0,2649.9,0.0379729]
[1727372054381,3.86793673,2650.0,2649.9,0.0379729]
[1727372054759,3.77358,2650.0,2649.9,0.0379729]
[1727372055065,5.00891572,2650.0,2649.9,0.0379729]
[1727372055377,4.9145592,2650.0,2649.9,0.0379729]
[1727372056395,3.77358,2650.0,2649.9,0.0379729]
[1727372057197,6.86794149,2650.0,2649.9,0.0379729]
[1727372057497,7.41794149,2650.0,2649.9,0.0379729]
[1727372058574,7.32358,2650.0,2649.9,0.0379729]
[1727372059587,10.79540637,2650.0,2649.9,0.0379729]
[1727372059895,12.37398557,2650.0,2649.9,0.0379729]
[1727372060301,8.9021592,2650.0,2649.9,0.0379729]
[1727372060611,12.37398557,2650.0,2649.9,0.0379729]
[1727372061569,8.9021592,2650.0,2649.9,0.0379729]
[1727372061775,12.37398557,2650.0,2649.9,0.0379729]
[1727372063665,11.82398557,2650.0,2649.9,0.0379729]
[1727372065474,12.37398557,2650.0,2649.9,0.0379729]
[1727372066601,11.82398557,2650.0,2649.9,0.0379729]
[1727372068590,12.37398557,2650.0,2649.9,0.0379729]
[1727372069595,14.28575286,2650.0,2649.9,0.0379729]
[1727372072425,13.15428557,2650.0,2649.9,0.0379729]
[1727372074622,13.7198416,2650.0,2649.9,0.0379729]
[1727372075371,13.7198416,2650.0,2648.2,0.7685]
[1727372075372,6.77586,2648.4,2648.2,0.7685]
[1727372075517,3.77549,2648.7,2648.2,0.7685]
[1727372075712,3.77575,2648.5,2648.4,0.7685]
[1727372076369,7.24757637,2648.5,2648.4,0.7685]
[1727372079664,3.77586,2648.4,2648.1,0.7685]
[1727372079960,5.38923431,2648.4,2648.1,0.7685]
[1727372080473,5.29482325,2648.4,2648.1,0.7685]
[1727372080635,5.29482325,2648.4,2647.8,0.7685]
[1727372080636,8.93924844,2648.4,2647.8,0.7685]
[1727372080838,8.84482325,2648.4,2647.8,0.7685]
[1727372081147,8.84482325,2648.4,2647.5,0.0379729]
[1727372081148,9.62512325,2648.4,2647.5,0.0379729]
[1727372086470,9.62512325,2648.4,2647.9,0.807]
[1727372086764,8.84482325,2648.4,2647.9,0.807]
[1727372090551,8.29482325,2648.4,2647.9,0.807]
[1727372090863,3.77586,2648.4,2648.3,0.8449729]
[1727372091839,0.39061617,2648.5,2648.3,0.8449729]
[1727372092153,3.77473,2649.2,2648.5,0.807]
[1727372092353,3.77473,2649.2,2648.7,0.807]
[1727372092528,3.77449,2649.4,2648.8,0.807]
[1727372093033,3.47182637,2650.1,2648.9,0.807]
[1727372093034,3.77421,2649.6,2648.9,0.807]
[1727372093219,3.77421,2649.6,2649.1,0.807]
[1727372093628,3.77434,2649.5,2649.1,0.807]
[1727372095646,3.77421,2649.6,2649.1,0.807]
[1727372096046,7.54849,2649.6,2649.1,0.807]
[1727372096392,3.77431,2649.5,2649.2,0.807]
[1727372097286,3.77397,2649.8,2649.3,3.77453]
[1727372097483,3.77397,2649.8,2649.4,0.807]
[1727372097803,3.77397,2649.8,2649.5,0.458153]
[1727372097979,3.77374,2649.9,2649.5,0.458153]
[1727372098186,0.09435326,2649.8,2649.5,0.458153]
[1727372098690,3.86827326,2649.8,2649.5,0.458153]
[1727372098901,3.77429,2649.5,2649.4,0.807]
[1727372099752,3.86865521,2649.5,2649.4,0.807]
[1727372100292,0.09436521,2649.5,2649.4,0.807]
[1727372100479,3.86865521,2649.5,2649.4,0.807]
[1727372100800,3.86865521,2649.5,2648.7,3.77535]
[1727372100801,3.77485,2649.2,2648.7,0.7733]
[1727372101139,3.7749,2649.1,2648.7,0.7733]
[1727372101879,3.77458,2649.3,2648.8,4.54857]
[1727372102119,3.77458,2649.3,2648.9,0.7733]
[1727372102646,7.54876,2649.5,2648.9,0.7733]
[1727372102935,7.54876,2649.5,2649.0,0.7733]
[1727372102936,3.77437,2649.5,2649.0,0.7733]
[1727372103138,7.54876,2649.5,2649.0,1.228131]
[1727372103337,3.77423,2649.6,2649.0,5.003011]
[1727372103499,3.77423,2649.6,2649.1,1.6511021]
[1727372103500,3.77431,2649.5,2649.1,1.6511021]
[1727372104400,3.77446,2649.4,2649.1,1.6511021]
[1727372105336,3.77446,2649.4,2649.1,0.7733]
[1727372105337,3.77472,2649.2,2649.1,0.7733]
[1727372105703,3.86909606,2649.2,2649.1,0.7733]
[1727372105897,3.77472,2649.2,2649.1,0.7733]
[1727372107298,3.8690958,2649.2,2649.1,0.7733]
[1727372107531,3.86909603,2649.2,2649.1,0.7733]
[1727372107736,4.27062677,2649.2,2648.7,0.7733]
[1727372107938,3.77503,2649.0,2648.7,0.7733]
[1727372108106,3.77526,2648.9,2648.7,0.7733]
[1727372109517,3.77529,2648.8,2648.7,0.7733]
[1727372109753,3.77515,2648.9,2648.7,0.7733]
[1727372109898,0.09438919,2648.9,2648.7,0.7733]
[1727372110104,3.77515,2648.9,2648.7,0.7733]
[1727372110750,3.77529,2648.8,2648.7,0.7733]
[1727372111065,3.77581,2648.5,2648.3,0.8112729]
[1727372111197,3.77586,2648.4,2648.3,0.8112729]
[1727372111397,3.87027031,2648.4,2648.3,0.0379729]
[1727372111610,4.88765067,2648.4,2648.3,0.0379729]
[1727372112235,5.28023119,2648.4,2648.3,0.0379729]
[1727372112637,4.88765067,2648.4,2648.3,0.0379729]
[1727372112817,3.77586,2648.4,2648.3,0.0379729]
[1727372114857,3.87027289,2648.4,2648.3,0.0379729]
[1727372115142,3.77586,2648.4,2648.3,0.0379729]
[1727372117051,3.8702742,2648.4,2648.3,0.0379729]
[1727372117391,4.16853909,2648.4,2648.3,0.0379729]
[1727372118281,6.292974,2648.4,2648.3,0.0379729]
[1727372118589,6.38739891,2648.4,2648.3,0.0379729]
[1727372118951,6.292974,2648.4,2648.3,0.0379729]
[1727372120789,9.38739874,2648.4,2648.3,0.0379729]
[1727372120965,9.292974,2648.4,2648.3,0.0379729]
[1727372121911,9.292974,2648.4,2647.5,0.0379729]
[1727372121912,8.107,2647.6,2647.5,0.0379729]
[1727372122110,11.57882637,2647.6,2647.5,0.0379729]
[1727372122323,8.107,2647.6,2647.5,0.0379729]
[1727372122487,11.57882637,2647.6,2647.5,0.0379729]
[1727372122690,11.57882637,2647.6,2646.7,0.0379729]
[1727372122691,5.10814,2646.8,2646.7,0.0379729]
[1727372122895,5.10814,2646.8,2645.7,0.0109816]
[1727372122896,3.77957,2645.8,2645.7,0.0109816]
[1727372123215,3.77943,2645.9,2645.7,0.0109816]
[1727372123675,3.77957,2645.8,2645.7,0.0109816]
[1727372123997,4.32957,2645.8,2645.7,0.0109816]
[1727372124223,8.66265264,2645.8,2645.7,0.0109816]
[1727372124525,12.68447901,2645.8,2645.7,0.0109816]
[1727372125287,3.77957,2645.8,2645.7,0.0109816]
[1727372125801,3.77925,2646.1,2645.7,0.0109816]
[1727372126009,3.77943,2645.9,2645.7,0.0109816]
[1727372126184,3.77925,2646.1,2645.7,0.0109816]
[1727372126386,3.77944,2645.9,2645.7,0.0109816]
[1727372126589,3.77944,2645.9,2645.7,0.8415816]
[1727372126824,7.5585,2646.1,2645.7,0.8415816]
[1727372127001,3.77925,2646.1,2645.7,0.8415816]
[1727372128021,3.77919,2646.1,2645.7,0.8415816]
[1727372128231,3.77889,2646.3,2645.7,0.8415816]
[1727372128420,3.77909,2646.2,2645.7,0.8415816]
[1727372129212,3.77889,2646.3,2645.7,0.8415816]
[1727372130137,3.77908,2646.2,2645.7,0.8415816]
[1727372130291,3.77908,2646.2,2645.7,1.30372976]
[1727372130692,3.77882,2646.4,2645.7,5.08343976]
[1727372130915,6.77866,2646.5,2645.9,3.77942]
[1727372130916,3.77857,2646.5,2645.9,3.77942]
[1727372131117,3.77857,2646.5,2646.0,0.377942]
[1727372131362,3.77857,2646.5,2645.8,3.77955]
[1727372131748,3.77857,2646.5,2645.9,3.77941]
[1727372132138,0.39487361,2648.5,2645.7,0.0109816]
[1727372132139,3.77957,2645.8,2645.7,0.0109816]
[1727372132568,3.87407765,2645.8,2645.7,0.0109816]
[1727372132977,3.77957,2645.8,2645.7,0.0109816]
[1727372133177,3.87407993,2645.8,2645.7,0.0109816]
[1727372133477,4.63943192,2645.8,2645.7,0.0109816]
[1727372133648,4.54492199,2645.8,2645.7,0.0109816]
[1727372133836,8.18943197,2645.8,2645.7,0.0109816]
[1727372134042,8.09492199,2645.8,2645.7,0.0109816]
[1727372135940,7.54492199,2645.8,2645.7,0.0109816]
[1727372136140,3.77944,2645.9,2645.7,0.0109816]
[1727372136141,3.77944,2645.9,2645.7,0.7799816]
[1727372136336,3.77957,2645.8,2645.7,0.0109816]
[1727372136580,3.77932,2646.0,2645.7,0.0109816]
[1727372136784,3.77945,2645.9,2645.7,0.0109816]
[1727372137685,4.232553,2646.2,2645.7,3.7906616]
[1727372137885,3.7791,2646.2,2645.8,0.769]
[1727372138683,3.77873,2646.4,2645.8,0.769]
[1727372138839,3.77857,2646.5,2645.8,5.00444616]
[1727372139041,3.77878,2646.4,2645.9,3.77941]
[1727372139248,3.77857,2646.5,2645.9,7.55882]
[1727372139488,3.77839,2646.7,2646.1,3.77907]
[1727372139640,3.77813,2646.9,2646.2,4.54787]
[1727372139841,3.778,2646.9,2646.2,1.601694]
[1727372140146,3.77829,2646.7,2646.2,1.601694]
[1727372140341,3.778,2646.9,2646.2,1.601694]
[1727372140543,3.77777,2647.1,2646.5,3.77848]
[1727372140770,3.77788,2647.0,2646.6,0.769]
[1727372141472,3.77808,2646.9,2646.6,0.769]
[1727372142520,7.55414,2647.6,2646.8,3.77804]
[1727372142643,3.77704,2647.6,2647.0,3.77783]
[1727372142842,7.55414,2647.6,2647.0,3.77783]
[1727372143038,3.77704,2647.6,2647.0,3.77783]
[1727372143241,3.77704,2647.6,2647.0,4.5788874]
[1727372143242,7.55415,2647.6,2647.0,4.5788874]
[1727372143583,3.77719,2647.5,2647.0,4.5788874]
[1727372143751,3.77719,2647.5,2647.0,0.8010574]
[1727372144138,3.77719,2647.5,2647.0,4.5789074]
[1727372144738,3.77704,2647.6,2647.0,4.5789074]
[1727372144987,3.77704,2647.6,2647.0,8.3567574]
[1727372145289,3.77681,2647.8,2647.3,0.7726]
[1727372145583,3.77681,2647.8,2647.3,4.55]
[1727372145584,3.77672,2647.8,2647.3,4.55]
[1727372145945,7.55352,2647.8,2647.3,0.7726]
[1727372146338,3.77672,2647.8,2647.3,0.7726]
[1727372146471,3.77689,2647.7,2647.3,0.7726]
[1727372146843,7.55354,2647.8,2647.3,0.7726]
[1727372147789,3.77707,2647.6,2647.3,0.7726]
[1727372148392,3.77715,2647.5,2646.8,0.7726]
[1727372148697,3.77715,2647.5,2646.8,4.55065]
[1727372148988,3.77715,2647.5,2647.0,3.77778]
[1727372149191,3.77696,2647.7,2646.8,4.55069]
[1727372149192,3.77696,2647.7,2646.8,0.7726]
[1727372149362,7.55395,2647.7,2647.1,3.77767]
[1727372149561,0.0276199,2648.1,2646.5,6.77854]
[1727372149562,3.77666,2647.9,2647.2,0.7726]
[1727372149886,7.55335,2647.9,2647.4,3.77718]
[1727372150102,3.77666,2647.9,2647.4,3.77718]
[1727372150317,3.77666,2647.9,2647.3,3.77742]
[1727372150318,3.77686,2647.7,2647.3,3.77742]
[1727372150471,3.77686,2647.7,2647.2,0.7726]
[1727372150667,3.77666,2647.9,2647.2,0.7726]
[1727372150866,0.0276199,2648.1,2647.2,0.7726]
[1727372150867,3.77695,2647.7,2647.2,1.227623]
[1727372151072,3.77695,2647.7,2647.2,0.7726]
[1727372151287,3.77702,2647.6,2647.2,0.7726]
[1727372151702,3.77695,2647.7,2647.2,0.7726]
[1727372151703,3.77717,2647.5,2647.2,0.7726]
[1727372151898,3.77736,2647.4,2647.2,0.7726]
[1727372152274,0.377717,2647.5,2646.9,8.1126]
[1727372152506,3.77772,2647.1,2646.9,0.7726]
[1727372153616,3.87217314,2647.1,2646.7,0.7726]
[1727372153766,3.77772,2647.1,2646.7,0.7726]
[1727372154081,3.77788,2647.0,2646.4,14.89722]
[1727372154283,3.77788,2647.0,2646.4,16.464202]
[1727372154479,3.77788,2647.0,2646.5,3.77848]
[1727372154684,0.39250554,2647.6,2647.0,0.7726]
[1727372154866,3.77687,2647.7,2647.2,3.77753]
[1727372156009,3.7768,2647.8,2647.0,0.7726]
[1727372156010,3.77672,2647.8,2647.0,0.7726]
[1727372156324,3.77736,2647.4,2647.0,0.7726]
[1727372156673,7.55473,2647.4,2647.0,0.7726]
[1727372157120,3.7771,2647.6,2647.0,8.32815]
[1727372157275,3.77715,2647.5,2647.0,4.55037]
[1727372157474,3.7773,2647.4,2647.0,0.7726]
[1727372158492,3.77715,2647.5,2647.0,0.7726]
[1727372158725,7.55438,2647.5,2647.0,0.7726]
[1727372158936,3.77715,2647.5,2647.0,4.55037]
[1727372159508,3.77715,2647.5,2647.0,0.7726]
[1727372159922,3.77712,2647.6,2647.1,3.77768]
[1727372160129,3.87168294,2647.5,2647.0,0.7726]
[1727372160429,3.77724,2647.5,2647.0,4.55043]
[1727372160724,3.77733,2647.4,2647.0,0.7726]
[1727372161732,3.77701,2647.6,2647.1,3.7777]
[1727372162026,3.7773,2647.4,2647.0,0.7726]
[1727372162383,0.09444303,2647.3,2647.0,0.7726]
[1727372162594,0.55,2647.5,2646.8,0.775]
[1727372162888,3.77744,2647.3,2646.8,4.55313]
[1727372163293,3.77778,2647.1,2646.7,7.34]
[1727372163626,3.77794,2647.0,2646.4,4.55365]
[1727372163848,3.77781,2647.1,2646.5,3.77849]
[1727372163989,3.0,2647.3,2646.7,3.77827]
[1727372164189,3.77703,2647.6,2646.9,4.5529]
[1727372164501,3.77703,2647.6,2647.1,3.7776]
[1727372165003,3.77726,2647.5,2646.9,4.55294]
[1727372165204,3.77721,2647.5,2646.9,5.008214]
[1727372165420,3.77658,2647.9,2647.4,3.77724]
[1727372165734,3.77697,2647.7,2647.3,0.775]
[1727372166030,7.55339,2647.9,2647.3,1.34076185]
[1727372166240,3.77672,2647.8,2647.3,5.11814185]
[1727372166530,3.77701,2647.6,2647.3,1.34076185]
[1727372166897,3.77672,2647.8,2647.3,5.11814185]
[1727372167322,3.77688,2647.7,2647.3,1.34076185]
[1727372167828,7.55354,2647.8,2647.3,5.11814185]
[1727372168637,3.77702,2647.6,2647.3,1.34076185]
[1727372168842,3.77702,2647.6,2647.3,0.775]
[1727372169243,0.09442917,2647.5,2647.3,0.775]
[1727372169444,3.77714,2647.5,2647.3,0.775]
[1727372169604,3.77729,2647.4,2647.3,0.775]
[1727372170441,3.77707,2647.6,2647.3,0.775]
[1727372171463,3.77809,2646.9,2646.7,0.775]
[1727372171671,3.77814,2646.8,2646.7,0.775]
[1727372171871,3.77837,2646.7,2646.3,0.775]
[1727372172037,3.77853,2646.6,2646.3,0.775]
[1727372172242,3.77837,2646.7,2646.3,0.775]
[1727372172569,0.94234751,2647.5,2646.3,0.775]
[1727372172570,3.77851,2646.6,2646.3,0.775]
[1727372172931,3.77802,2646.9,2646.3,0.775]
[1727372172932,3.77857,2646.5,2646.3,0.775]
[1727372173155,3.77857,2646.5,2646.0,4.55427]
[1727372174233,7.55722,2646.5,2646.0,4.55427]
[1727372174771,3.77873,2646.4,2646.0,4.55427]
[1727372175074,3.77857,2646.5,2646.0,4.55427]
[1727372175272,7.55727,2646.5,2646.0,5.387644]
[1727372175567,3.77873,2646.4,2646.0,1.608374]
[1727372175782,3.77914,2646.1,2646.0,0.775]
[1727372175945,0.09447535,2646.3,2645.7,0.8156816]
[1727372175946,0.09449124,2646.3,2645.7,0.8156816]
[1727372176133,3.77957,2645.8,2645.7,0.8156816]
[1727372176329,3.77951,2645.9,2645.7,0.8156816]
[1727372176781,3.77951,2645.9,2645.7,0.0109816]
[1727372176940,3.77957,2645.8,2645.7,0.0109816]
[1727372177152,3.77933,2646.0,2645.7,0.0109816]
[1727372177352,3.77951,2645.9,2645.7,0.0109816]
[1727372177789,3.87400919,2645.9,2645.7,0.0109816]
[1727372177949,3.77951,2645.9,2645.7,0.0109816]
[1727372179161,3.87406912,2645.8,2645.7,0.0109816]
[1727372179448,3.77957,2645.8,2645.7,0.0109816]
[1727372179881,3.77939,2646.0,2645.7,0.0109816]
[1727372179882,7.55878,2646.0,2645.7,0.0109816]
[1727372180065,0.823,2646.4,2645.8,0.8047]
[1727372180066,3.77905,2646.2,2645.8,0.8047]
[1727372180389,7.55796,2646.3,2645.7,3.7906916]
[1727372180552,3.77873,2646.4,2645.8,4.58426]
[1727372180755,3.77937,2646.0,2645.8,0.8047]
[1727372180955,4.535212,2646.0,2645.8,0.8047]
[1727372181154,3.77937,2646.0,2645.8,0.8047]
[1727372182491,3.77943,2645.9,2645.7,0.0109816]
[1727372182679,3.77957,2645.8,2645.7,0.0109816]
[1727372182852,6.87406083,2645.8,2645.7,0.0109816]
[1727372183054,8.02170991,2645.8,2645.7,0.0109816]
[1727372183396,7.92721908,2645.8,2645.7,0.0109816]
[1727372185324,7.92721908,2645.8,2645.1,0.8097]
[1727372185325,3.78031,2645.3,2645.1,0.8097]
[1727372185522,3.78043,2645.2,2645.1,0.8195665]
[1727372186405,3.78029,2645.3,2645.1,0.8195665]
[1727372186811,3.78029,2645.3,2645.1,0.0148665]
[1727372186812,3.78043,2645.2,2645.1,0.0148665]
[1727372186994,3.87495947,2645.2,2645.1,0.0148665]
[1727372187182,3.78043,2645.2,2645.1,0.0148665]
[1727372188142,4.17203882,2645.2,2645.1,0.0148665]
[1727372188307,8.63831975,2645.2,2645.1,0.0148665]
[1727372188508,12.92485523,2645.2,2645.1,0.0148665]
[1727372189005,8.08831975,2645.2,2645.1,0.0148665]
[1727372189516,13.29924641,2645.2,2645.1,0.0148665]
[1727372189717,13.69147549,2645.2,2645.1,0.0148665]
[1727372191306,4.93865908,2645.2,2645.1,0.0148665]
[1727372191516,4.54643,2645.2,2645.1,0.0148665]
[1727372192610,8.09643,2645.2,2645.1,0.0148665]
[1727372192815,8.48811745,2645.2,2645.1,0.0148665]
[1727372195563,12.77465293,2645.2,2645.1,0.0148665]
[1727372195721,14.43014722,2645.2,2645.1,0.0148665]
[1727372197770,7.331,2644.8,2644.7,0.005]
[1727372197917,7.331,2644.8,2644.1,0.0383523]
[1727372197918,8.05386,2644.2,2644.1,0.0383523]
[1727372198126,9.66607255,2644.2,2644.1,0.0383523]
[1727372198657,8.39407255,2644.2,2644.1,0.0383523]
[1727372198958,8.94407255,2644.2,2644.1,0.0383523]
[1727372199456,3.78173,2644.3,2644.1,0.0383523]
[1727372199814,3.87641568,2644.2,2644.1,0.0383523]
[1727372200073,3.78186,2644.2,2644.1,0.0383523]
[1727372201349,4.33186,2644.2,2644.1,0.0383523]
[1727372201540,5.143219,2644.2,2644.1,0.0383523]
[1727372202831,4.593219,2644.2,2644.1,0.0383523]
[1727372203667,4.17336928,2644.2,2644.1,0.0383523]
[1727372203866,3.78186,2644.2,2644.1,0.0383523]
[1727372204974,3.78152,2644.5,2644.1,0.8078523]
[1727372205264,3.78168,2644.4,2644.1,0.8078523]
[1727372205433,1.05632,2644.4,2644.1,0.0383523]
[1727372205635,6.78186,2644.2,2644.1,0.0383523]
[1727372205962,6.87643207,2644.2,2644.1,0.0383523]
[1727372206317,7.42643207,2644.2,2644.1,0.0383523]
[1727372206742,6.78186,2644.2,2644.1,0.0383523]
[1727372207239,7.42642882,2644.2,2644.1,0.0383523]
[1727372207538,8.5472427,2644.2,2644.1,0.0383523]
[1727372207734,8.45267388,2644.2,2644.1,0.0383523]
[1727372209367,7.90267388,2644.2,2644.1,0.0383523]
[1727372209678,8.45267388,2644.2,2644.1,0.0383523]
[1727372209889,7.90267388,2644.2,2644.1,0.0383523]
[1727372213486,8.70717388,2644.2,2644.1,0.0383523]
[1727372214467,12.99370936,2644.2,2644.1,0.0383523]
[1727372215459,8.70717388,2644.2,2644.1,0.0383523]
[1727372216092,9.0980633,2644.2,2644.1,0.0383523]
[1727372216665,13.38459878,2644.2,2644.1,0.0383523]
[1727372216871,13.93459878,2644.2,2644.1,0.0383523]
[1727372219526,13.93459878,2644.2,2644.0,0.028]
[1727372219527,8.1384,2644.1,2644.0,0.028]
[1727372219723,9.91003088,2644.1,2644.0,0.028]
[1727372221028,9.91003088,2644.1,2643.3,0.0383523]
[1727372221029,12.42593548,2643.4,2643.3,0.0383523]
[1727372221182,11.87593548,2643.4,2643.3,0.0383523]
[1727372221371,13.44181603,2643.4,2643.3,0.0383523]
[1727372221568,6.783,2643.4,2643.3,0.0383523]
[1727372221984,3.783,2643.4,2643.3,0.0383523]
[1727372222229,3.783,2643.4,2643.3,0.8352523]
[1727372223129,3.78287,2643.5,2643.3,0.8352523]
[1727372223130,2.99337565,2643.5,2643.3,0.8352523]
[1727372223782,3.78273,2643.6,2643.3,0.8352523]
[1727372226031,3.78264,2643.7,2643.3,0.8352523]
[1727372226687,3.78264,2643.7,2643.5,0.7969]
[1727372227127,3.78231,2643.9,2643.5,0.7969]
[1727372227389,3.7825,2643.8,2643.5,0.7969]
[1727372227808,3.78221,2644.0,2643.5,0.7969]
[1727372228023,3.78221,2644.0,2643.7,0.7969]
[1727372228223,3.7823,2643.9,2643.7,0.7969]
[1727372228605,3.78243,2643.8,2643.7,0.7969]
[1727372229845,3.7823,2643.9,2643.7,0.7969]
[1727372230140,15.39293548,2644.7,2643.7,0.7969]
[1727372230141,3.78221,2644.0,2643.7,0.7969]
[1727372230860,3.78191,2644.2,2643.7,1.254867]
[1727372231152,3.78191,2644.2,2643.7,0.7969]
[1727372231461,3.78191,2644.2,2643.8,0.7969]
[1727372231675,3.78229,2643.9,2643.8,0.7969]
[1727372232009,7.56395,2644.2,2643.8,0.7969]
[1727372232213,3.78195,2644.2,2643.9,0.7969]
[1727372232404,3.78209,2644.1,2643.9,0.7969]
[1727372232604,3.78186,2644.2,2643.9,0.7969]
[1727372232806,3.78171,2644.3,2643.9,3.78227]
[1727372233031,3.78171,2644.3,2643.8,0.457961]
[1727372233032,3.78171,2644.3,2644.1,0.7969]
[1727372233242,3.78182,2644.3,2643.6,0.7969]
[1727372233816,5.09293548,2644.6,2643.6,3.78263]
[1727372233817,3.78138,2644.6,2643.6,3.78263]
[1727372234017,3.78138,2644.6,2643.8,0.7969]
[1727372235053,3.78129,2644.7,2643.8,0.7969]
[1727372235426,4.17137842,2644.7,2643.8,4.57931]
[1727372235619,3.78132,2644.6,2643.9,0.7558]
[1727372235958,3.78132,2644.6,2644.0,0.7558]
[1727372236246,7.56269,2644.6,2644.0,0.7558]
[1727372236451,3.78132,2644.6,2644.0,0.7558]